bitfinex/quotes_SOLUSD_20260308
["timestamp","ask_amount","ask_price","bid_price","bid_amount"]
[1773011515574,12.18991893,82.035,81.978,0.82594636]
[1773011515778,12.27403653,82.03,81.978,0.82594636]
[1773011515990,12.18991893,82.035,81.978,0.82594636]
[1773011516389,0.2,82.04,81.985,0.82594636]
[1773011517104,12.18932458,82.039,81.985,0.82594636]
[1773011517688,0.2,82.04,81.99,0.82594636]
[1773011517884,0.2,82.04,81.996,0.82594636]
[1773011518902,0.2,82.04,81.998,0.82594636]
[1773011519584,12.38927135,82.04,81.998,0.82594636]
[1773011520789,12.27403653,82.08,82.003,0.82594636]
[1773011520989,12.27403653,82.09,82.016,0.82594636]
[1773011521195,12.27403653,82.08,82.016,0.82594636]
[1773011522008,12.18190013,82.089,82.025,4.82477569]
[1773011522192,12.18190013,82.089,82.026,0.82594636]
[1773011522394,12.17869773,82.111,82.045,0.82594636]
[1773011522586,12.17869773,82.111,82.055,0.82594636]
[1773011522784,42.62528832,82.111,82.055,0.82594636]
[1773011522989,12.27403653,82.11,82.055,0.82594636]
[1773011523187,0.28432314,82.109,82.055,0.82594636]
[1773011523395,12.27403653,82.11,82.055,0.82594636]
[1773011523813,0.28432314,82.109,82.055,0.82594636]
[1773011524108,12.18041632,82.099,82.048,0.82594636]
[1773011525188,12.27403653,82.09,82.048,0.82594636]
[1773011525409,12.27403653,82.08,82.047,12.18813606]
[1773011526108,12.1833843,82.079,82.041,12.18902743]
[1773011526313,12.1833843,82.079,82.042,0.82594636]
[1773011526814,42.64184505,82.079,82.041,12.18902743]
[1773011528089,42.7287017,82.09,82.044,0.82594636]
[1773011528316,0.759,82.129,82.045,0.82594636]
[1773011528317,12.27403653,82.1,82.045,0.82594636]
[1773011528492,12.27403653,82.12,82.046,0.82594636]
[1773011528688,0.28432314,82.119,82.047,0.82594636]
[1773011528906,0.28432314,82.119,82.048,0.82594636]
[1773011529112,12.27403653,82.11,82.048,0.82594636]
[1773011529607,12.27403653,82.1,82.048,0.82594636]
[1773011529811,12.27403653,82.09,82.048,0.82594636]
[1773011530201,12.18190013,82.089,82.05,0.82594636]
[1773011531798,30.45162197,82.098,82.052,0.82594636]
[1773011532511,12.18041632,82.099,82.052,0.82594636]
[1773011533098,12.17893288,82.109,82.053,0.82594636]
[1773011533613,42.62626508,82.109,82.054,0.82594636]
[1773011533812,12.27403653,82.1,82.055,0.82594636]
[1773011534005,42.63145713,82.099,82.056,12.18679925]
[1773011534323,12.18041632,82.099,82.057,0.82594636]
[1773011536120,42.63145713,82.099,82.058,13.01244859]
[1773011536603,42.63145713,82.099,82.059,0.82594636]
[1773011536917,42.63145713,82.099,82.058,12.18650223]
[1773011536918,12.27403653,82.09,82.058,12.18650223]
[1773011537119,42.63145713,82.099,82.038,0.28432314]
[1773011537120,12.27403653,82.08,82.043,0.82594636]
[1773011537324,12.27403653,82.07,82.008,0.82594636]
[1773011537514,12.27403653,82.06,82.009,0.82594636]
[1773011537823,12.27403653,82.05,82.011,0.82594636]
[1773011538026,12.27403653,82.06,82.013,0.82594636]
[1773011538202,12.18635372,82.059,82.016,0.82594636]
[1773011538400,12.18486882,82.069,82.017,0.82594636]
[1773011538699,42.64704089,82.069,82.017,0.82594636]
[1773011538910,12.27403653,82.06,82.017,0.82594636]
[1773011540031,42.64704089,82.069,82.017,0.82594636]
[1773011540320,42.64704089,82.069,82.019,0.82594636]
[1773011543405,42.64704089,82.069,82.021,0.82594636]
[1773011545405,42.64704089,82.069,82.023,0.82594636]
[1773011546509,12.27403653,82.06,82.023,0.82594636]
[1773011546829,12.27403653,82.05,82.022,12.19185096]
[1773011547829,12.18783897,82.049,82.016,13.01868923]
[1773011548626,12.27403653,82.04,82.003,13.02062216]
[1773011548810,12.27403653,82.03,81.995,12.19582135]
[1773011549005,12.27403653,82.03,81.996,0.82594636]
[1773011549319,12.27403653,82.04,81.996,0.82594636]
[1773011549824,12.18932458,82.039,81.998,0.82594636]
[1773011551506,42.66263605,82.039,82.0,0.82594636]
[1773011551912,12.23267229,82.03,81.991,0.82594636]
[1773011552229,12.23267229,82.01,81.98,12.19809709]
[1773011552430,12.23267229,82.0,81.973,12.19907269]
[1773011552825,12.23267229,81.99,81.964,12.20047825]
[1773011553720,12.1967581,81.989,81.958,30.50342313]
[1773011553921,12.1967581,81.989,81.959,0.82594636]
[1773011554224,12.23267229,82.0,81.959,0.82594636]
[1773011554433,12.19470596,82.003,81.959,0.82594636]
[1773011555907,12.1937836,82.009,81.96,42.70375792]
[1773011556229,12.1937836,82.009,81.961,0.82594636]
[1773011558424,12.1937836,82.009,81.963,0.82594636]
[1773011558824,12.23267229,82.01,81.963,0.82594636]
[1773011559024,24.42640413,82.01,81.963,0.82594636]
[1773011559735,24.42640413,82.01,81.965,0.82594636]
[1773011559936,3.69383402,82.03,81.966,0.96810793]
[1773011560138,0.28432314,82.029,81.967,0.82594636]
[1773011560529,0.28432314,82.029,81.827,26.4262067]
[1773011560530,12.19081056,82.029,81.97,0.82594636]
[1773011561625,12.19081056,82.029,81.973,0.82594636]
[1773011563420,12.23267229,82.02,81.976,0.82594636]
[1773011564824,12.1922969,82.019,81.978,0.82594636]
[1773011566525,12.19081056,82.029,81.978,0.82594636]
[1773011567341,12.19081056,82.029,81.98,0.82594636]
[1773011567846,12.23267229,82.02,81.98,0.82594636]
[1773011569334,12.1922969,82.019,81.982,0.82594636]
[1773011570634,12.19095918,82.028,81.982,0.82594636]
[1773011571841,12.19095918,82.028,81.983,42.69177756]
[1773011572035,12.19095918,82.028,81.984,0.82594636]
[1773011572436,12.23267229,82.03,81.984,0.82594636]
[1773011572639,12.19081056,82.029,81.984,0.82594636]
[1773011573244,12.23267229,82.02,81.984,0.82594636]
[1773011573547,12.19081056,82.029,81.984,0.82594636]
[1773011574244,12.19081056,82.029,81.986,0.82594636]
[1773011575639,12.19081056,82.029,81.985,42.6907361]
[1773011575640,12.19081056,82.029,81.988,0.82594636]
[1773011576036,12.23267229,82.02,81.988,0.82594636]
[1773011576736,42.66783697,82.029,81.988,0.82594636]
[1773011577838,42.66783697,82.029,81.99,0.82594636]
[1773011578946,42.66783697,82.029,81.992,0.82594636]
[1773011580055,42.66783697,82.029,81.993,12.19616308]
[1773011580254,42.66783697,82.029,81.994,0.82594636]
[1773011580850,12.18885111,82.043,81.994,0.28432314]
[1773011581156,12.18885111,82.043,81.997,0.82594636]
[1773011582256,42.65753938,82.049,81.999,0.82594636]
[1773011583346,30.46652614,82.058,82.0,0.82594636]
[1773011583546,30.4580525,82.081,82.005,0.82594636]
[1773011583746,12.23267229,82.07,82.005,0.82594636]
[1773011583946,12.23267229,82.06,82.005,0.82594636]
[1773011584141,12.23267229,82.06,81.997,4.82477569]
[1773011584142,12.23267229,82.04,82.008,0.82594636]
[1773011584352,12.23267229,82.04,82.001,0.82594636]
[1773011585858,12.18932458,82.039,82.003,0.82594636]
[1773011586953,12.23267229,82.04,82.003,0.82594636]
[1773011587153,12.23267229,82.05,82.003,0.82594636]
[1773011587859,24.42046562,82.05,82.005,0.82594636]
[1773011589265,24.42046562,82.05,82.007,0.82594636]
[1773011589564,12.23267229,82.06,82.007,0.82594636]
[1773011590657,12.18575972,82.063,82.008,0.82594636]
[1773011590855,30.45953496,82.077,82.008,0.82594636]
[1773011590856,12.18413757,82.074,82.016,0.82594636]
[1773011591566,12.23267229,82.06,82.018,0.82594636]
[1773011592050,54.87919355,82.07,82.018,0.82594636]
[1773011592960,24.41739265,82.07,82.018,0.82594636]
[1773011593276,12.23267229,82.06,82.018,0.82594636]
[1773011593454,12.23267229,82.06,82.019,12.1922969]
[1773011593455,12.18635372,82.059,82.019,12.1922969]
[1773011593654,4.56512069,82.05,82.02,0.82594636]
[1773011593859,12.18635372,82.059,82.02,0.82594636]
[1773011594748,12.18635372,82.059,82.022,0.82594636]
[1773011595962,4.56512069,82.06,82.024,0.82594636]
[1773011596354,4.56512069,82.05,82.024,0.82594636]
[1773011597074,4.56512069,82.05,82.023,12.19170232]
[1773011597464,4.56512069,82.05,82.024,0.82594636]
[1773011597878,4.56512069,82.05,82.025,12.19140505]
[1773011598170,12.18660315,82.058,82.026,0.82594636]
[1773011599556,12.18660315,82.058,82.028,0.82594636]
[1773011600769,4.56512069,82.06,82.028,0.82594636]
[1773011600981,0.28432314,82.099,82.029,0.82594636]
[1773011601159,60.90189094,82.1,82.029,0.82594636]
[1773011601160,4.56512069,82.09,82.029,0.82594636]
[1773011601362,4.56512069,82.09,82.032,0.82594636]
[1773011601571,12.18190013,82.089,82.035,0.96810793]
[1773011601765,4.56512069,82.1,82.036,0.82594636]
[1773011602082,4.56512069,82.11,82.05,0.82594636]
[1773011602272,4.56512069,82.11,82.051,0.96810793]
[1773011602471,4.56512069,82.1,82.052,0.96810793]
[1773011602675,4.56512069,82.1,82.053,0.28432314]
[1773011602883,4.56512069,82.1,82.055,0.96810793]
[1773011603178,4.56512069,82.11,82.057,0.82594636]
[1773011603685,4.56512069,82.11,82.056,0.14216157]
[1773011603686,12.17893288,82.109,82.059,0.82594636]
[1773011605175,4.56512069,82.13,82.064,4.82477569]
[1773011605377,4.56512069,82.13,82.073,3.69383402]
[1773011605677,30.43559115,82.141,82.07,4.82477569]
[1773011605678,4.56512069,82.14,82.076,0.82594636]
[1773011605984,4.56512069,82.14,82.067,4.82477569]
[1773011605985,4.76512069,82.15,82.086,0.82594636]
[1773011606775,4.56512069,82.14,82.086,0.82594636]
[1773011607570,12.17300271,82.149,82.086,0.82594636]
[1773011607770,12.17300271,82.149,82.088,0.82594636]
[1773011608469,4.56512069,82.14,82.088,0.82594636]
[1773011608784,12.17300271,82.149,82.088,0.82594636]
[1773011608785,4.56512069,82.13,82.088,0.82594636]
[1773011609567,4.55587298,82.13,82.09,0.82594636]
[1773011609978,42.60550949,82.149,82.091,0.82594636]
[1773011610180,4.55587298,82.14,82.093,0.82594636]
[1773011610378,4.55587298,82.14,82.094,0.82594636]
[1773011610589,4.55587298,82.14,82.096,0.82594636]
[1773011610884,4.55587298,82.13,82.09,0.82594636]
[1773011611087,4.55587298,82.12,82.09,0.82594636]
[1773011611793,4.55587298,82.13,82.092,0.82594636]
[1773011611992,4.55587298,82.14,82.093,0.82594636]
[1773011612174,12.17389187,82.143,82.094,0.82594636]
[1773011612581,4.55587298,82.14,82.095,0.82594636]
[1773011612774,4.55587298,82.14,82.095,1.1102695]
[1773011612986,4.55587298,82.14,82.097,0.82594636]
[1773011613795,0.2,82.15,82.1,0.82594636]
[1773011613796,4.75587298,82.15,82.1,0.82594636]
[1773011614102,0.2,82.15,82.1,0.82594636]
[1773011614794,0.2,82.15,82.107,0.82594636]
[1773011615890,0.2,82.15,82.106,0.28432314]
[1773011615891,0.2,82.15,82.11,0.82594636]
[1773011616092,12.17300271,82.149,82.11,0.82594636]
[1773011617077,0.2,82.15,82.11,0.82594636]
[1773011619509,12.19481094,82.14,82.106,12.17937787]
[1773011620577,12.19481094,82.14,82.107,0.82594636]
[1773011621195,42.60550949,82.149,82.107,0.82594636]
[1773011621401,12.19481094,82.14,82.107,0.82594636]
[1773011622683,24.36925169,82.14,82.109,0.82594636]
[1773011622882,12.19481094,82.14,82.109,0.82594636]
[1773011623101,12.17448471,82.139,82.109,0.82594636]
[1773011624398,12.17448471,82.139,82.108,12.17908121]
[1773011624785,12.17448471,82.139,82.103,12.1798229]
[1773011624984,12.17448471,82.139,82.104,0.82594636]
[1773011625712,12.17300271,82.149,82.104,0.82594636]
[1773011627202,12.17300271,82.149,82.106,0.82594636]
[1773011630000,12.19481094,82.14,82.108,0.82594636]
[1773011630207,12.19481094,82.14,82.107,12.17922954]
[1773011630795,12.19481094,82.14,82.107,13.0051759]
[1773011630997,12.19481094,82.14,82.108,0.82594636]
[1773011631401,0.2,82.15,82.108,0.82594636]
[1773011631601,12.39481094,82.15,82.108,0.82594636]
[1773011631802,12.19481094,82.14,82.107,12.17922954]
[1773011632508,12.19481094,82.13,82.103,12.1798229]
[1773011634102,12.19481094,82.13,82.103,13.00576926]
[1773011635191,12.17596707,82.129,82.103,13.00576926]
[1773011635408,12.19481094,82.12,82.099,12.18038727]
[1773011635613,12.17596707,82.129,82.099,12.18038727]
[1773011636920,12.17596707,82.129,82.1,0.82594636]
[1773011637413,12.17596707,82.129,82.102,0.82594636]
[1773011638627,4.55622305,82.12,82.087,0.82594636]
[1773011638827,42.61588476,82.129,82.087,0.82594636]
[1773011638828,4.55622305,82.11,82.087,0.82594636]
[1773011639120,4.55622305,82.12,82.087,0.82594636]
[1773011640401,4.55622305,82.11,82.087,12.1821664]
[1773011640602,4.55622305,82.11,82.082,12.18293901]
[1773011640997,4.55622305,82.11,82.082,0.82594636]
[1773011641201,4.55622305,82.11,82.079,0.82594636]
[1773011641711,4.55622305,82.12,82.079,0.82594636]
[1773011641898,4.55622305,82.14,82.08,0.82594636]
[1773011642101,4.75622305,82.15,82.082,0.82594636]
[1773011642324,4.75622305,82.15,82.096,0.82594636]
[1773011642504,4.55622305,82.14,82.096,0.82594636]
[1773011643020,0.2,82.15,82.096,0.82594636]
[1773011643202,0.2,82.15,82.106,0.82594636]
[1773011644506,12.17300271,82.149,82.108,0.82594636]
[1773011645109,12.19472232,82.14,82.108,0.82594636]
[1773011645329,12.19472232,82.13,82.108,0.82594636]
[1773011645926,12.19472232,82.14,82.108,0.82594636]
[1773011646115,12.19472232,82.13,82.108,0.82594636]
[1773011646317,12.19472232,82.14,82.108,0.82594636]
[1773011646710,12.17448471,82.139,82.108,0.82594636]
[1773011647027,12.19472232,82.13,82.109,12.17893288]
[1773011647814,12.19472232,82.13,82.105,12.17950765]
[1773011648019,42.61069649,82.139,82.101,12.18002381]
[1773011648020,12.19472232,82.12,82.101,12.18002381]
[1773011648519,12.19472232,82.13,82.101,12.18002381]
[1773011649018,12.19472232,82.12,82.095,0.82594636]
[1773011650024,12.17596707,82.129,82.095,0.82594636]
[1773011650729,42.61588476,82.129,82.095,0.82594636]
[1773011651310,12.19472232,82.12,82.096,0.82594636]
[1773011651741,12.19472232,82.11,82.082,0.82594636]
[1773011652426,12.19472232,82.13,82.085,0.82594636]
[1773011652625,12.19472232,82.14,82.085,0.82594636]
[1773011652834,12.19472232,82.14,82.086,0.28432314]
[1773011653012,12.19472232,82.14,82.087,0.82594636]
[1773011653829,12.17448471,82.139,82.089,0.82594636]
[1773011657034,42.61069649,82.139,82.091,0.82594636]
[1773011657214,12.19472232,82.13,82.091,0.82594636]
[1773011658117,12.19472232,82.14,82.092,42.63509233]
[1773011658328,12.19472232,82.14,82.093,0.82594636]
[1773011660132,42.60602813,82.148,82.093,0.82594636]
[1773011660133,12.17315089,82.148,82.096,0.82594636]
[1773011660330,12.17315089,82.148,82.098,0.82594636]
[1773011660541,12.17300271,82.149,82.098,0.82594636]
[1773011661721,12.19472232,82.14,82.098,0.82594636]
[1773011662327,12.17300271,82.149,82.1,0.82594636]
[1773011662520,12.39472232,82.15,82.101,0.82594636]
[1773011662719,24.56758374,82.15,82.101,0.82594636]
[1773011662919,12.19472232,82.14,82.101,0.82594636]
[1773011663939,12.17448471,82.139,82.103,0.82594636]
[1773011664834,12.19472232,82.13,82.103,0.82594636]
[1773011665040,12.17448471,82.139,82.103,0.82594636]
[1773011666034,4.55540796,82.13,82.105,0.82594636]
[1773011666833,4.55540796,82.12,82.104,12.17967455]
[1773011667019,4.55540796,82.12,82.1,12.18019144]
[1773011667734,4.55540796,82.12,82.1,13.0061378]
[1773011668734,4.55540796,82.12,82.101,0.82594636]
[1773011668937,4.55540796,82.13,82.101,0.82594636]
[1773011669142,4.55540796,82.14,82.101,0.82594636]
[1773011669441,16.92836478,82.15,82.101,0.82594636]
[1773011669620,16.92712935,82.15,82.101,0.82594636]
[1773011669817,4.55417253,82.14,82.101,0.82594636]
[1773011671020,4.55417253,82.14,82.092,0.28432314]
[1773011671021,12.17448471,82.139,82.103,0.82594636]
[1773011671218,4.55417253,82.13,82.103,0.82594636]
[1773011671417,12.17448471,82.139,82.102,12.17997125]
[1773011671418,4.55417253,82.12,82.102,12.17997125]
[1773011673421,4.55417253,82.12,82.098,0.82594636]
[1773011675621,0.2,82.15,82.093,30.45320294]
[1773011675622,4.55417253,82.11,82.093,12.18115919]
[1773011676848,4.55417253,82.12,82.094,0.82594636]
[1773011677143,4.55417253,82.11,82.094,0.82594636]
[1773011678831,4.55417253,82.11,82.096,0.82594636]
[1773011680547,4.55417253,82.12,82.097,13.00665941]
[1773011680744,4.55417253,82.12,82.098,0.82594636]
[1773011682034,4.55417253,82.13,82.098,0.82594636]
[1773011682442,12.17596707,82.129,82.099,12.18041632]
[1773011682642,12.17596707,82.129,82.1,0.82594636]
[1773011684054,60.87070295,82.142,82.099,12.18041632]
[1773011684055,12.17147533,82.16,82.106,0.77817623]
[1773011684255,12.17003979,82.169,82.107,0.77817623]
[1773011684441,12.17003979,82.169,82.117,0.77817623]
[1773011684640,12.41353982,82.169,82.12,0.77817623]
[1773011684860,0.24350003,82.168,82.12,0.77817623]
[1773011686238,0.24355611,82.159,82.12,0.77817623]
[1773011686558,42.59513928,82.169,82.12,0.77817623]
[1773011686559,0.24355611,82.149,82.12,0.77817623]
[1773011686939,12.17315089,82.148,82.121,12.95532945]
[1773011687950,12.17315089,82.148,82.122,0.77817623]
[1773011688151,12.41681976,82.148,82.122,0.77817623]
[1773011688659,0.24372202,82.147,82.117,12.17768974]
[1773011688854,0.24372202,82.147,82.118,0.77817623]
[1773011689160,12.17344727,82.146,82.12,0.77817623]
[1773011689553,12.19850744,82.15,82.12,0.77817623]
[1773011689754,12.17210454,82.156,82.12,0.77817623]
[1773011690463,0.24378008,82.155,82.12,0.77817623]
[1773011691255,0.24378008,82.155,82.122,0.77817623]
[1773011692561,0.2,82.17,82.123,0.77817623]
[1773011692768,0.2,82.17,82.124,0.77817623]
[1773011693370,0.2,82.17,82.127,0.77817623]
[1773011693371,12.17003979,82.169,82.127,0.77817623]
[1773011694070,0.24399344,82.168,82.127,0.77817623]
[1773011695958,12.17033602,82.167,82.129,0.77817623]
[1773011697365,0.2,82.17,82.13,0.28432314]
[1773011697567,0.2,82.17,82.132,0.77817623]
[1773011697765,0.2,82.17,82.134,0.77817623]
[1773011697976,0.2,82.17,82.136,0.9203378]
[1773011698152,0.2,82.17,82.137,0.77817623]
[1773011699266,0.2,82.17,82.139,0.77817623]
[1773011701150,0.2,82.18,82.141,0.77817623]
[1773011701369,0.2,82.18,82.143,0.77817623]
[1773011701653,0.2,82.2,82.154,4.82477569]
[1773011701850,0.2,82.2,82.161,0.77817623]
[1773011702066,0.2,82.2,82.162,0.77817623]
[1773011702250,0.2,82.2,82.164,0.77817623]
[1773011702451,0.2,82.21,82.167,0.77817623]
[1773011702777,1.00343752,82.234,82.18,0.77817623]
[1773011702971,12.19850744,82.21,82.149,0.72953293]
[1773011703154,0.24448066,82.207,82.169,0.72953293]
[1773011703356,12.19850744,82.2,82.169,0.72953293]
[1773011703681,12.19850744,82.19,82.164,0.72953293]
[1773011703884,0.24452408,82.196,82.164,0.72953293]
[1773011704250,0.24452408,82.203,82.165,0.72953293]
[1773011704549,12.19850744,82.21,82.165,0.72953293]
[1773011704550,12.16411828,82.209,82.165,0.72953293]
[1773011704755,0.24456487,82.208,82.165,0.72953293]
[1773011705478,12.16441422,82.207,82.167,0.72953293]
[1773011706980,12.16308261,82.216,82.17,0.71384315]
[1773011707273,12.16308261,82.216,82.169,0.28432314]
[1773011707274,0.2,82.23,82.183,4.82477569]
[1773011707570,0.24471965,82.209,82.185,12.16767049]
[1773011707773,0.24471965,82.209,82.176,12.16895372]
[1773011708275,0.73984618,82.189,82.139,3.69383402]
[1773011708475,0.73984618,82.189,82.14,4.82477569]
[1773011708682,0.73984618,82.179,82.136,42.61225284]
[1773011708869,0.28432314,82.205,82.136,42.61225284]
[1773011708870,0.73984618,82.169,82.136,12.17492938]
[1773011709061,0.28432314,82.195,82.126,30.44076788]
[1773011709062,0.73984618,82.159,82.127,12.17626359]
[1773011709461,0.73984618,82.159,82.126,30.44076788]
[1773011709662,12.17034463,82.167,82.126,30.44076788]
[1773011709860,12.19850744,82.17,82.129,0.71384315]
[1773011710061,0.73984618,82.169,82.129,0.85600472]
[1773011710268,0.73984618,82.169,82.129,0.99816629]
[1773011710581,0.73984618,82.169,82.131,0.71384315]
[1773011711160,0.73984618,82.169,82.123,0.71384315]
[1773011711363,0.73984618,82.149,82.119,12.17744979]
[1773011711584,0.73984618,82.147,82.119,12.17744979]
[1773011711770,12.19850744,82.14,82.119,12.17744979]
[1773011711969,12.93835362,82.13,82.103,12.1798229]
[1773011712271,0.73984618,82.129,82.104,0.71384315]
[1773011712482,0.73984618,82.139,82.104,0.71384315]
[1773011712860,12.17315089,82.148,82.105,0.71384315]
[1773011713295,0.73984618,82.149,82.105,0.71384315]
[1773011713464,12.17258052,82.152,82.105,0.71384315]
[1773011713782,12.19850744,82.15,82.107,0.71384315]
[1773011713981,12.93835362,82.14,82.107,0.71384315]
[1773011714285,0.73984618,82.139,82.107,0.71384315]
[1773011714482,0.73984618,82.129,82.09,0.71384315]
[1773011715166,12.93835362,82.12,82.09,0.71384315]
[1773011715366,0.73984618,82.119,82.09,0.71384315]
[1773011715674,0.73984618,82.119,82.091,12.18160334]
[1773011715881,12.17759809,82.118,82.091,12.18160334]
[1773011716470,0.73984618,82.129,82.092,0.71384315]
[1773011716675,12.17490048,82.137,82.093,0.71384315]
[1773011717178,12.19850744,82.12,82.093,0.71384315]
[1773011717382,0.73984618,82.119,82.091,12.18160334]
[1773011717686,0.73984618,82.107,82.077,12.89752432]
[1773011717982,0.73984618,82.107,82.078,0.71384315]
[1773011718977,0.73984618,82.119,82.078,0.71384315]
[1773011719202,12.19850744,82.13,82.081,0.71384315]
[1773011719483,0.73984618,82.137,82.089,0.71384315]
[1773011719695,12.17596707,82.129,82.092,0.71384315]
[1773011719987,0.73984618,82.128,82.092,0.71384315]
[1773011721770,0.73984618,82.119,82.093,12.18130656]
[1773011722884,12.91744427,82.118,82.087,12.89604008]
[1773011723078,0.73984618,82.118,82.088,0.71384315]
[1773011723879,12.91744427,82.118,82.088,0.71384315]
[1773011724079,0.73984618,82.117,82.088,0.71384315]
[1773011724382,12.19850744,82.11,82.087,12.18219693]
[1773011724566,12.93835362,82.11,82.087,12.18219693]
[1773011725374,12.17893288,82.109,82.083,12.18276463]
[1773011725568,0.73984618,82.108,82.083,12.18276463]
[1773011727174,0.73984618,82.106,82.083,12.18276463]
[1773011727688,0.73984618,82.106,82.077,12.89752432]
[1773011727893,0.73984618,82.106,82.078,0.71384315]
[1773011728295,12.19850744,82.11,82.078,0.71384315]
[1773011728591,12.93835362,82.12,82.078,0.71384315]
[1773011728773,0.73984618,82.12,82.078,0.71384315]
[1773011728982,12.93835362,82.12,82.078,0.71384315]
[1773011729181,0.73984618,82.119,82.08,0.71384315]
[1773011731297,12.20734021,82.12,82.082,0.71384315]
[1773011731598,12.17706642,82.122,82.082,0.71384315]
[1773011732397,12.17557948,82.132,82.083,0.71384315]
[1773011732597,0.73984618,82.129,82.083,0.71384315]
[1773011733498,12.89955974,82.128,82.086,0.72929714]
[1773011734888,0.72344441,82.127,82.088,0.72929714]
[1773011737302,0.28432314,82.155,82.087,42.63768927]
[1773011737303,12.17300271,82.149,82.098,4.82477569]
[1773011737502,12.17300271,82.149,82.099,0.72929714]
[1773011738405,12.89644712,82.149,82.099,0.72929714]
[1773011739110,12.89644712,82.149,82.102,0.72929714]
[1773011739603,12.17152107,82.159,82.11,0.72929714]
[1773011739802,0.72344441,82.158,82.11,0.72929714]
[1773011741705,0.72344441,82.156,82.113,0.72929714]
[1773011742917,12.20734021,82.15,82.113,0.72929714]
[1773011743105,12.20734021,82.15,82.084,60.91303989]
[1773011743106,0.72344441,82.139,82.09,0.72929714]
[1773011743402,0.72344441,82.129,82.094,0.72929714]
[1773011743603,0.72344441,82.119,82.086,0.72929714]
[1773011743801,0.72344441,82.119,82.088,0.72929714]
[1773011744314,0.72344441,82.118,82.087,42.63768927]
[1773011744526,0.72344441,82.118,82.088,0.72929714]
[1773011746604,0.72344441,82.116,82.089,12.18190013]
[1773011747309,0.72344441,82.116,82.089,12.91119727]
[1773011747800,0.72344441,82.125,82.09,0.72929714]
[1773011748819,0.72344441,82.125,82.092,0.72929714]
[1773011749404,12.17670839,82.124,82.092,0.72929714]
[1773011749913,0.72344441,82.13,82.092,0.72929714]
[1773011750118,0.72344441,82.149,82.1,0.72929714]
[1773011750808,0.72344441,82.147,82.102,0.72929714]
[1773011751013,0.72344441,82.147,82.103,0.72929714]
[1773011752531,0.72344441,82.157,82.109,0.72929714]
[1773011753814,0.72344441,82.156,82.111,1.01362028]
[1773011754131,0.72344441,82.156,82.112,0.72929714]
[1773011755848,0.72344441,82.17,82.119,0.72929714]
[1773011756133,0.72344441,82.17,82.12,0.72929714]
[1773011756337,0.72344441,82.168,82.12,0.72929714]
[1773011759136,0.72344441,82.166,82.123,0.72929714]
[1773011760718,4.55178988,82.15,82.121,12.17715322]
[1773011761032,0.72344441,82.149,82.121,12.17715322]
[1773011761235,0.72344441,82.129,82.075,0.72929714]
[1773011761406,0.72344441,82.129,82.077,1.01362028]
[1773011761608,0.72344441,82.119,82.085,0.72929714]
[1773011762127,0.72344441,82.149,82.099,0.72929714]
[1773011762513,0.72344441,82.139,82.099,0.72929714]
[1773011763124,0.74774222,82.149,82.099,0.72929714]
[1773011763328,0.74774222,82.149,82.102,0.77868046]
[1773011764030,0.74774222,82.147,82.102,0.77868046]
[1773011765930,0.74774222,82.145,82.106,0.77868046]
[1773011766129,0.74774222,82.145,82.107,0.77868046]
[1773011767733,0.74774222,82.145,82.108,42.62678423]
[1773011767942,0.74774222,82.153,82.109,0.77868046]
[1773011768120,0.74774222,82.153,82.111,0.756186]
[1773011768327,0.74774222,82.153,82.112,1.04050914]
[1773011768625,0.74774222,82.153,82.115,0.756186]
[1773011768821,0.74774222,82.153,82.116,0.89834757]
[1773011769031,0.74774222,82.153,82.117,0.756186]
[1773011771245,0.74774222,82.153,82.119,0.756186]
[1773011774240,0.74774222,82.153,82.101,4.82477569]
[1773011774241,0.74774222,82.153,82.121,0.756186]
[1773011775928,12.17175921,82.158,82.121,0.756186]
[1773011776136,12.941678,82.158,82.121,0.756186]
[1773011776645,0.76991879,82.158,82.123,0.756186]
[1773011778948,0.76991879,82.156,82.124,12.17670839]
[1773011779541,12.17181737,82.157,82.118,0.756186]
[1773011779846,0.76991879,82.16,82.118,0.756186]
[1773011781251,0.76991879,82.158,82.12,0.756186]
[1773011783042,0.28432314,82.185,82.12,0.756186]
[1773011783043,0.76991879,82.189,82.126,0.756186]
[1773011783242,0.76991879,82.179,82.133,0.756186]
[1773011784628,4.55189747,82.17,82.131,42.614847]
[1773011784834,0.76991879,82.169,82.131,42.614847]
[1773011785035,0.76991879,82.169,82.132,0.756186]
[1773011785350,0.76991879,82.169,82.131,42.614847]
[1773011785351,0.76991879,82.167,82.133,12.93156008]
[1773011785548,0.76991879,82.167,82.134,0.756186]
[1773011785951,0.76991879,82.193,82.139,0.756186]
[1773011789451,0.76991879,82.191,82.149,4.82477569]
[1773011789655,0.76991879,82.191,82.15,0.756186]
[1773011791354,0.76991879,82.189,82.153,0.756186]
[1773011793554,0.76991879,82.189,82.156,0.73348616]
[1773011795457,0.69865311,82.187,82.156,0.73348616]
[1773011795638,30.41410563,82.199,82.157,12.17181737]
[1773011795639,0.69865311,82.185,82.157,12.17181737]
[1773011795843,0.69865311,82.185,82.158,0.73348616]
[1773011796040,0.69865311,82.204,82.16,0.73348616]
[1773011796357,0.2,82.23,82.187,0.73348616]